bitfinex-derivatives/quotes_ETHF0:USTF0_20250505
["timestamp","ask_amount","ask_price","bid_price","bid_amount"]
[1746485832015,6.31398891,1826.4,1826.3,17.06518854]
[1746485832215,6.31398891,1826.4,1826.3,18.16045854]
[1746485832717,6.31398891,1826.4,1826.3,17.06518854]
[1746485833118,6.31398891,1826.4,1826.3,20.79718854]
[1746485833318,6.31398891,1826.4,1826.3,21.89245854]
[1746485834017,6.31398891,1826.4,1826.3,20.79718854]
[1746485834913,3.65012891,1826.4,1826.3,21.89245854]
[1746485835717,3.65012891,1826.5,1826.4,1.09521]
[1746485835919,3.65012891,1826.5,1826.4,17.30439854]
[1746485836119,3.65012891,1826.5,1826.4,21.03639854]
[1746485837218,4.74527891,1826.5,1826.4,21.03639854]
[1746485838907,4.74527891,1826.5,1826.4,9.00058854]
[1746485839112,1.09521,1826.4,1826.3,0.8402]
[1746485839320,6.03421,1826.4,1826.3,15.37338854]
[1746485840218,6.03421,1826.4,1826.3,20.20065854]
[1746485842226,6.03421,1826.4,1826.3,19.10538854]
[1746485842424,6.03421,1826.4,1826.3,21.81515854]
[1746485843230,6.03421,1826.4,1826.3,20.71988854]
[1746485843931,12.21435754,1826.4,1826.3,20.71988854]
[1746485846339,12.21435754,1826.4,1826.3,16.98788854]
[1746485847940,14.01554215,1826.4,1826.3,16.98788854]
[1746485848133,14.01554215,1826.4,1826.3,20.71988854]
[1746485849138,14.01554215,1826.4,1826.3,16.98788854]
[1746485849635,11.18913215,1826.4,1826.3,18.08315854]
[1746485849833,7.98133215,1826.4,1826.3,18.08315854]
[1746485850234,7.98133215,1826.4,1826.3,21.81515854]
[1746485851341,7.98133215,1826.4,1826.3,26.81515854]
[1746485851541,7.98133215,1826.4,1826.3,21.81515854]
[1746485851841,3.66069819,1826.4,1826.3,21.81515854]
[1746485855845,4.75584819,1826.5,1826.4,1.09521]
[1746485856143,4.75584819,1826.5,1826.4,21.00939854]
[1746485856746,3.66069819,1826.5,1826.4,21.00939854]
[1746485859944,3.66069819,1826.5,1826.4,24.21719854]
[1746485860246,3.66069819,1826.6,1826.5,1.09515]
[1746485860440,3.66069819,1826.6,1826.5,18.06573854]
[1746485860641,7.28285768,1826.8,1826.7,1.09503]
[1746485860842,7.28285768,1826.8,1826.7,15.62821854]
[1746485861445,15.56247075,1826.9,1826.8,1.09497]
[1746485861648,15.56247075,1826.9,1826.8,20.96025854]
[1746485862045,12.06927391,1826.9,1826.8,25.96025854]
[1746485862346,9.23987391,1826.9,1826.8,29.16805854]
[1746485862544,6.47928391,1826.9,1826.8,29.16805854]
[1746485863147,10.94984537,1827.2,1827.1,1.09479]
[1746485863349,10.94984537,1827.2,1827.1,22.51477854]
[1746485864146,1.601,1827.5,1827.4,1.09461]
[1746485864346,1.601,1827.5,1827.4,15.62779854]
[1746485864845,1.601,1827.5,1827.4,17.22759854]
[1746485865147,1.601,1827.5,1827.4,6.28699854]
[1746485865148,2.69555,1827.5,1827.4,6.28699854]
[1746485865749,2.69555,1827.5,1827.4,17.22759854]
[1746485866545,1.09461,1827.4,1827.3,2.72344]
[1746485866751,2.69671,1827.4,1827.3,3.59258854]
[1746485867650,2.69671,1827.4,1827.3,4.68725854]
[1746485868253,6.42871,1827.4,1827.3,4.68725854]
[1746485868543,5.3341,1827.4,1827.0,1.6473]
[1746485868749,1.09479,1827.1,1827.0,2.80052]
[1746485869248,4.30259,1827.1,1827.0,2.80052]
[1746485869650,2.74459,1827.1,1827.0,2.80052]
[1746485869848,9.8576,1827.1,1826.7,3.2078]
[1746485870048,3.56838,1827.0,1826.9,1.09491]
[1746485870244,2.4735,1827.0,1826.9,1.09491]
[1746485870556,3.56835,1827.0,1826.9,1.09491]
[1746485873354,3.56835,1827.0,1826.8,2.80062]
[1746485873545,1.6782,1826.9,1826.8,6.39320854]
[1746485874252,1.6782,1826.9,1826.8,10.12520854]
[1746485874753,2.77311,1826.9,1826.8,10.12520854]
[1746485875248,5.98091,1826.9,1826.8,10.12520854]
[1746485875952,4.886,1826.9,1826.8,10.12520854]
[1746485876752,5.98091,1826.9,1826.8,21.06580854]
[1746485877153,2.77311,1826.9,1826.8,21.06580854]
[1746485877546,1.6782,1826.9,1826.8,21.06580854]
[1746485878253,2.77311,1826.9,1826.8,21.06580854]
[1746485879956,3.63301,1826.9,1826.8,19.36010854]
[1746485880251,2.5381,1826.9,1826.8,19.36010854]
[1746485880443,3.63301,1826.9,1826.8,19.36010854]
[1746485880953,2.5381,1826.9,1826.8,19.36010854]
[1746485883158,3.63301,1826.9,1826.8,19.36010854]
[1746485883660,2.5381,1826.9,1826.8,19.36010854]
[1746485883858,3.63301,1826.9,1826.8,19.36010854]
[1746485884157,3.63301,1826.9,1826.8,3.732]
[1746485885159,1.09497,1826.8,1826.7,1.09503]
[1746485885360,6.01187,1826.8,1826.7,15.62821854]
[1746485885858,2.80407,1826.8,1826.7,15.62821854]
[1746485886160,2.80407,1826.8,1826.7,19.36021854]
[1746485890061,2.80407,1826.8,1826.7,14.53318854]
[1746485890261,2.80407,1826.8,1826.7,15.62821854]
[1746485891161,2.80407,1826.8,1826.7,14.53318854]
[1746485891754,7.65435,1826.8,1826.5,2.72969]
[1746485891955,3.51459,1826.7,1826.6,14.53318854]
[1746485892456,3.51459,1826.7,1826.6,1.09509]
[1746485893763,3.51459,1826.7,1826.6,12.03569]
[1746485894764,3.51459,1826.7,1826.6,13.66769]
[1746485900363,3.51459,1826.7,1826.6,17.26027854]
[1746485905366,3.51459,1826.7,1826.6,12.5726]
[1746485905875,3.51459,1826.7,1826.6,13.66769]
[1746485906370,3.51459,1826.7,1826.6,17.26027854]
[1746485908968,2.4195,1826.7,1826.6,17.26027854]
[1746485909167,3.51453,1826.7,1826.6,17.26027854]
[1746485909573,2.4195,1826.7,1826.6,17.26027854]
[1746485909770,7.71829,1826.9,1826.8,1.09497]
[1746485910076,4.51049,1826.9,1826.8,4.82697]
[1746485910970,4.30263,1827.1,1826.8,19.36015854]
[1746485911171,1.09485,1827.0,1826.9,17.83648854]
[1746485911371,1.09485,1827.0,1826.9,16.16458854]
[1746485912074,1.09485,1827.0,1826.9,19.89658854]
[1746485912579,5.94213,1827.1,1827.0,1.09485]
[1746485912780,5.94213,1827.1,1827.0,10.9406]
[1746485912987,1.09485,1827.0,1826.9,6.45826]
[1746485913280,1.09485,1827.0,1826.9,6.31884854]
[1746485913481,1.09485,1827.0,1826.9,17.25944854]
[1746485914077,1.09485,1827.0,1826.9,20.99144854]
[1746485915284,5.94215,1827.1,1827.0,1.09485]
[1746485915474,5.94215,1827.1,1827.0,12.03545]
[1746485915674,5.94215,1827.1,1827.0,1.09485]
[1746485916177,5.94215,1827.1,1827.0,4.82685]
[1746485916684,5.94215,1827.1,1827.0,3.732]
[1746485922181,1.09485,1827.0,1826.9,2.72627]
[1746485922689,1.09485,1827.0,1826.9,17.25945854]
[1746485923089,1.09485,1827.0,1826.9,20.99145854]
[1746485924099,1.09485,1827.0,1826.9,17.25945854]
[1746485924603,1.09503,1826.7,1826.6,3.2078]
[1746485924795,4.30277,1826.8,1826.7,14.53318854]
[1746485924999,6.01057,1826.8,1826.7,10.9406]
[1746485925299,6.01057,1826.8,1826.4,0.8651]
[1746485925300,1.09515,1826.6,1826.5,1.09514]
[1746485925597,1.09497,1826.8,1826.7,14.53318854]
[1746485926195,1.09497,1826.8,1826.7,18.26518854]
[1746485926500,1.09497,1826.8,1826.7,19.36021854]
[1746485928297,3.59616,1826.9,1826.8,1.09497]
[1746485928496,3.59616,1826.9,1826.8,14.53318854]
[1746485929098,3.59616,1826.9,1826.8,18.26518854]
[1746485930099,3.59616,1826.9,1826.8,14.53318854]
[1746485931190,3.59616,1826.9,1826.8,18.26518854]
[1746485933201,3.59616,1826.9,1826.8,14.53318854]
[1746485934799,3.59616,1826.9,1826.8,17.32055854]
[1746485935196,3.59616,1826.9,1826.8,21.05255854]
[1746485935398,3.59616,1826.9,1826.8,21.90635854]
[1746485936404,3.59616,1826.9,1826.8,20.81138854]
[1746485937105,3.59616,1826.9,1826.8,21.90635854]
[1746485937106,1.09496,1826.9,1826.8,21.90635854]
[1746485939502,1.09491,1826.9,1826.8,21.90630854]
[1746485940205,2.68061,1826.9,1826.8,18.17430854]
[1746485940401,1.09491,1826.9,1826.8,17.07938854]
[1746485941004,2.68061,1826.9,1826.8,17.07938854]
[1746485941207,2.68061,1826.9,1826.8,20.81138854]
[1746485941599,1.09491,1826.9,1826.8,20.81138854]
[1746485942001,8.486,1827.0,1826.8,20.81138854]
[1746485942201,1.09491,1826.9,1826.8,6.2782]
[1746485942402,1.09491,1826.9,1826.8,7.37313]
[1746485942607,1.09491,1826.9,1826.8,21.90631854]
[1746485943606,2.70811,1826.9,1826.8,21.90631854]
[1746485945903,2.70811,1826.9,1826.8,20.81138854]
[1746485946204,3.55731,1826.9,1826.8,21.90635854]
[1746485947496,3.55731,1826.9,1826.8,19.36015854]
[1746485948108,3.55731,1826.9,1826.8,21.03565854]
[1746485949211,3.55731,1826.9,1826.8,17.30365854]
[1746485949510,3.55731,1826.9,1826.8,16.20868854]
[1746485949708,3.55731,1826.9,1826.8,18.10115854]
[1746485950109,3.55731,1826.9,1826.8,21.83315854]
[1746485950710,3.55731,1826.9,1826.8,20.73818854]
[1746485956015,3.55731,1826.9,1826.8,3.732]
[1746485956209,1.09509,1826.6,1826.5,3.48324]
[1746485956718,1.09509,1826.6,1826.5,18.01642854]
[1746485957115,1.09509,1826.6,1826.5,21.74842854]
[1746485959313,1.09509,1826.6,1826.5,20.65328854]
[1746485960316,1.09509,1826.6,1826.5,21.74843854]
[1746485962023,1.09509,1826.6,1826.5,19.36033854]
[1746485962318,1.90959,1826.6,1826.5,18.26518854]
[1746485963223,1.90959,1826.6,1826.5,14.53318854]
[1746485964121,1.90959,1826.6,1826.5,18.26518854]
[1746485967423,3.50559,1826.6,1826.5,21.05063854]
[1746485967719,1.09509,1826.6,1826.5,21.05063854]
[1746485967910,6.58204419,1826.7,1826.6,1.09509]
[1746485968114,6.58204419,1826.7,1826.6,17.31857854]
[1746485969624,5.48697419,1826.7,1826.6,17.31857854]
[1746485971127,6.58200419,1826.7,1826.6,17.31857854]
[1746485972420,1.09503,1826.7,1826.6,17.31857854]
[1746485975227,1.09501,1826.8,1826.7,1.09499]
[1746485975426,1.09501,1826.8,1826.7,2.74539]
[1746485975627,1.09501,1826.8,1826.7,17.27857854]
[1746485977128,1.09501,1826.8,1826.7,21.01057854]
[1746485979130,8.19533419,1826.9,1826.8,1.09497]
[1746485979429,8.19533419,1826.9,1826.8,15.62815854]
[1746485979728,1.09497,1826.8,1826.7,1.91672]
[1746485979929,6.00797,1826.8,1826.7,16.44990854]
[1746485981619,3.2078,1826.8,1826.7,16.44990854]
[1746485981823,6.58192419,1826.9,1826.7,16.44990854]
[1746485982025,6.58192419,1826.9,1826.8,14.53318854]
[1746485982226,1.09497,1826.8,1826.7,5.64872]
[1746485982425,1.09497,1826.8,1826.7,9.24130854]
[1746485982631,1.09497,1826.8,1826.7,20.18190854]
[1746485985137,4.7546266,1826.8,1826.7,20.18190854]
[1746485985335,4.7546266,1826.8,1826.7,19.08688854]
[1746485989541,4.7546266,1826.8,1826.7,20.76038854]
[1746485990239,4.7546266,1826.8,1826.7,21.85541854]
[1746485992140,4.7546266,1826.8,1826.7,17.02838854]
[1746485992442,4.7546266,1826.8,1826.7,18.12341854]
[1746485992740,4.7546266,1826.8,1826.7,17.02838854]
[1746485994136,4.7546266,1826.8,1826.7,20.76038854]
[1746485994530,6.3855266,1826.8,1826.7,21.85541854]
[1746485995241,6.3855266,1826.8,1826.7,20.76038854]
[1746485996437,6.3855266,1826.8,1826.7,21.85541854]
[1746486002143,6.3855266,1826.8,1826.7,18.12341854]
[1746486003144,6.3855266,1826.8,1826.7,21.85541854]
[1746486003841,3.6596566,1826.8,1826.7,21.85541854]
[1746486004239,4.7546266,1826.8,1826.7,20.76038854]
[1746486004442,7.1779266,1826.8,1826.7,3.732]
[1746486005243,1.09503,1826.7,1826.6,1.09508]
[1746486005440,3.46593,1826.7,1826.6,14.53318854]
[1746486005642,3.46593,1826.7,1826.6,15.62827854]
[1746486007247,3.46593,1826.7,1826.6,14.53318854]
[1746486007551,3.46593,1826.7,1826.6,15.62827854]
[1746486008050,2.66653,1826.7,1826.6,15.62827854]
[1746486008249,4.7546766,1826.8,1826.7,1.09503]
[1746486008439,4.7546766,1826.8,1826.7,18.03761854]
[1746486009153,4.7546766,1826.8,1826.7,21.76961854]
[1746486009751,3.6596566,1826.8,1826.7,21.76961854]
[1746486011153,4.7545966,1826.9,1826.8,1.09497]
[1746486011446,3.6596566,1826.9,1826.8,17.22435854]
[1746486011652,3.6596566,1826.9,1826.8,24.91365854]
[1746486014053,3.6596566,1826.9,1826.8,21.70585854]
[1746486015154,4.7545666,1826.9,1826.8,21.70585854]
[1746486015349,1.09515,1826.6,1826.5,1.09513]
[1746486015548,1.09515,1826.6,1826.5,6.00468854]
[1746486015754,1.09515,1826.6,1826.5,3.59258854]
[1746486015956,1.09515,1826.6,1826.5,14.48167953]
[1746486016150,2.78435,1826.6,1826.5,14.48167953]
[1746486016451,2.78435,1826.6,1826.5,15.57682953]
[1746486016652,2.78435,1826.6,1826.5,14.48167953]
[1746486017460,2.78435,1826.6,1826.5,10.88909099]
[1746486020769,1.09521,1826.4,1826.3,1.6937]
[1746486021064,1.09521,1826.4,1826.3,5.4257]
[1746486021262,1.09521,1826.4,1826.3,18.26518854]
[1746486021462,2.71191,1826.4,1826.3,18.26518854]
[1746486023166,2.71191,1826.4,1826.3,19.97748854]
[1746486024471,2.71191,1826.4,1826.3,21.07275854]
[1746486024670,2.783,1826.5,1826.4,1.09521]
[1746486024863,2.783,1826.5,1826.4,17.82718854]
[1746486025063,2.783,1826.5,1826.4,3.294]
[1746486025265,6.43908389,1826.5,1826.4,7.026]
[1746486026173,6.43908389,1826.5,1826.4,3.294]
[1746486026870,3.65608389,1826.5,1826.4,15.32981]
[1746486027181,3.65608389,1826.5,1826.4,18.92239854]
[1746486027473,3.65608389,1826.5,1826.4,22.65439854]
[1746486028769,1.09509,1826.6,1826.5,1.09515]
[1746486028970,1.09509,1826.6,1826.5,17.25833854]
[1746486029170,1.09509,1826.6,1826.5,20.99033854]
[1746486029675,7.95894389,1826.7,1826.6,1.09509]
[1746486029876,4.75114389,1826.7,1826.6,17.31687854]
[1746486031377,3.65608389,1826.7,1826.6,17.31687854]
[1746486032375,3.65608389,1826.7,1826.6,20.52467854]
[1746486032977,11.61872559,1826.9,1826.6,19.42958854]
[1746486032978,7.95884389,1826.9,1826.6,19.42958854]
[1746486033178,7.95884389,1826.9,1826.8,15.62815854]
[1746486033370,6.86388389,1826.9,1826.8,15.62815854]
[1746486033570,3.65608389,1826.9,1826.8,17.30585854]
[1746486034170,3.65608389,1826.9,1826.8,21.03785854]
[1746486035276,3.65608389,1826.9,1826.8,17.30585854]
[1746486036181,7.13917419,1827.0,1826.9,1.09491]
[1746486036182,1.6522,1827.0,1826.9,1.09491]
[1746486036383,1.6522,1827.0,1826.9,17.30719854]
[1746486041784,1.0948,1827.1,1827.0,1.09485]
[1746486041984,1.0948,1827.1,1827.0,18.05363854]
[1746486042184,4.8268,1827.1,1827.0,3.52045]
[1746486042683,6.4778,1827.1,1827.0,3.52045]
[1746486042886,6.4778,1827.1,1827.0,2.67645]
[1746486043981,5.383,1827.1,1827.0,2.67645]
[1746486044187,1.651,1827.1,1827.0,2.67645]
[1746486044686,2.74579,1827.1,1827.0,2.67645]
[1746486046190,2.74579,1827.1,1827.0,6.40845]
[1746486053390,2.74579,1827.1,1827.0,10.00103854]
[1746486053589,1.651,1827.1,1827.0,20.94163854]
[1746486054093,0.794,1827.2,1827.1,1.09479]
[1746486054294,1.88876,1827.2,1827.1,2.67699]
[1746486054686,3.45336,1827.2,1827.1,2.67699]
[1746486054887,3.45336,1827.2,1827.1,17.21017854]
[1746486055992,3.45336,1827.2,1827.1,16.11538854]
[1746486056194,7.18536,1827.2,1827.1,16.11538854]
[1746486056687,7.18536,1827.2,1827.1,17.21017854]
[1746486056882,7.18536,1827.2,1827.1,16.11538854]
[1746486057087,3.45336,1827.2,1827.1,16.11538854]
[1746486057287,3.45336,1827.2,1827.1,17.21017854]
[1746486059594,3.45336,1827.2,1827.1,16.11538854]
[1746486060395,3.45336,1827.2,1827.1,17.21017854]
[1746486063402,3.2078,1827.4,1827.3,1.09467]
[1746486063699,1.09466,1827.4,1827.3,15.62785854]
[1746486063900,2.71196,1827.4,1827.3,1.09467]
[1746486064202,2.71196,1827.4,1827.3,16.13268854]
[1746486064501,2.71196,1827.4,1827.3,17.22735854]
[1746486065101,2.71196,1827.4,1827.3,16.13268854]
[1746486065401,2.71196,1827.4,1827.3,17.22735854]
[1746486065797,2.71196,1827.4,1827.3,16.13268854]
[1746486066101,2.71196,1827.4,1827.3,14.53318854]
[1746486066298,2.71196,1827.4,1826.9,9.57904]
[1746486066299,1.09485,1827.0,1826.9,3.634]
[1746486066501,1.09485,1827.0,1826.9,4.72891]
[1746486066802,1.09485,1827.0,1826.9,19.26209854]
[1746486067203,1.09485,1827.0,1826.9,22.99409854]
[1746486067405,2.78145,1827.0,1826.9,22.99409854]
[1746486067703,2.78145,1827.0,1826.9,24.69079854]
[1746486069504,1.6866,1827.0,1826.9,24.69079854]
[1746486069701,2.78145,1827.0,1826.9,24.69079854]
[1746486070003,1.6866,1827.0,1826.9,24.69079854]
[1746486070304,2.78145,1827.0,1826.9,24.69079854]
[1746486070897,1.6866,1827.0,1826.9,24.69079854]
[1746486071202,2.78145,1827.0,1826.9,24.69079854]
[1746486071398,1.6866,1827.0,1826.9,24.69079854]
[1746486071601,2.78145,1827.0,1826.9,24.69079854]
[1746486071798,1.6866,1827.0,1826.9,24.69079854]
[1746486072098,2.78145,1827.0,1826.9,24.69079854]
[1746486072704,2.78145,1827.0,1826.9,21.05679854]
[1746486073005,1.6866,1827.0,1826.9,21.05679854]
[1746486073803,2.78145,1827.0,1826.9,21.05679854]
[1746486074702,2.78145,1827.0,1826.9,10.11619854]
[1746486074906,2.78145,1827.0,1826.9,21.05679854]
[1746486078208,2.78145,1827.0,1826.9,19.36009854]
[1746486079908,2.78145,1827.0,1826.9,20.99399854]
[1746486080911,1.6866,1827.0,1826.9,20.99399854]
[1746486081123,2.78145,1827.0,1826.9,20.99399854]
[1746486081507,2.78145,1827.0,1826.9,3.732]
[1746486081809,10.98925,1827.0,1826.9,3.732]
[1746486082204,1.09503,1826.7,1826.6,8.37434503]
[1746486082409,1.09503,1826.7,1826.6,19.31494503]
[1746486083001,2.70933,1826.7,1826.6,19.31494503]
[1746486083203,2.70933,1826.7,1826.6,18.21987503]
[1746486084013,5.91713,1826.7,1826.6,7.27927503]
[1746486084206,1.09515,1826.5,1826.4,8.03787]
[1746486084405,2.73484,1826.6,1826.5,15.62833854]
[1746486085116,2.73484,1826.6,1826.5,19.36033854]
[1746486085814,2.73484,1826.6,1826.5,4.82715]
[1746486087209,1.6397,1826.6,1826.5,4.82715]
[1746486087409,1.6397,1826.6,1826.5,6.39065]
[1746486087816,2.73479,1826.6,1826.5,6.39065]
[1746486088117,1.6397,1826.6,1826.5,6.39065]
[1746486088516,7.95896389,1826.7,1826.6,1.09509]
[1746486088818,7.95896389,1826.7,1826.6,2.65859]
[1746486090717,4.75116389,1826.7,1826.6,2.65859]
[1746486091013,3.65608389,1826.7,1826.6,17.19177854]
[1746486091210,3.46059,1826.8,1826.7,1.09503]
[1746486091410,3.46059,1826.8,1826.7,18.06971854]
[1746486091615,3.46059,1826.8,1826.7,3.53653]
[1746486092112,13.44580808,1826.9,1826.8,1.09497]
[1746486092415,10.23796808,1826.9,1826.8,13.66637]
[1746486092618,10.23796808,1826.9,1826.8,2.72577]
[1746486093116,11.87266808,1826.9,1826.8,6.45777]
[1746486095421,2.72961,1826.9,1826.8,6.45777]
[1746486096707,2.72961,1826.9,1826.8,17.39837]
[1746486098513,2.72961,1826.9,1826.8,20.99095854]
[1746486101420,2.72961,1826.9,1826.8,19.89598854]
[1746486101716,2.72961,1826.9,1826.8,20.99095854]
[1746486105023,2.72961,1826.9,1826.8,18.26518854]
[1746486105223,2.72961,1826.9,1826.8,3.732]
[1746486106124,1.09503,1826.7,1826.6,3.62006]
[1746486106520,1.09503,1826.7,1826.6,18.15324854]
[1746486108526,1.09498,1826.8,1826.7,1.09503]
[1746486108822,1.09498,1826.8,1826.7,17.23501854]
[1746486109224,1.09498,1826.8,1826.7,20.96701854]
[1746486110024,4.75104389,1826.9,1826.8,1.09497]
[1746486110218,3.65608389,1826.9,1826.8,18.07035854]
[1746486110424,4.75099389,1826.9,1826.8,18.07035854]
[1746486111224,4.75099389,1826.9,1826.8,20.70738854]
[1746486111525,4.75099389,1826.9,1826.8,21.80235854]
[1746486111923,4.75099389,1826.9,1826.8,20.70738854]
[1746486112126,4.75099389,1826.9,1826.8,21.80235854]
[1746486113027,1.09491,1826.9,1826.8,21.80235854]
[1746486117230,1.09491,1826.9,1826.8,19.87198854]
[1746486117531,2.80981,1826.9,1826.8,3.732]
[1746486117723,4.49471,1826.9,1826.8,3.732]
[1746486118130,1.09503,1826.7,1826.6,5.14019]
[1746486118329,1.09503,1826.7,1826.6,6.80459]
[1746486118530,1.09503,1826.7,1826.6,21.33777854]
[1746486119827,1.09503,1826.7,1826.6,20.24268854]
[1746486120032,1.09503,1826.7,1826.6,17.03488854]
[1746486120933,1.09503,1826.7,1826.6,18.12997854]
[1746486123237,1.09509,1826.6,1826.5,3.732]
[1746486123435,1.89429,1826.6,1826.5,18.26518854]
[1746486123933,4.45879,1826.6,1826.5,18.26518854]
[1746486124237,1.09515,1826.5,1826.4,6.2806]
[1746486124536,2.77045,1826.5,1826.4,6.2806]
[1746486124735,2.77045,1826.5,1826.4,18.26518854]
[1746486125039,5.97825,1826.5,1826.4,3.732]
[1746486125235,1.09527,1826.3,1826.2,7.6614]
[1746486125535,1.09527,1826.3,1826.2,17.5067]
[1746486125732,1.09527,1826.3,1826.2,21.09928854]
[1746486126142,1.09527,1826.3,1826.2,10.68288854]
[1746486126436,2.69187,1826.3,1826.2,5.4098]
[1746486127136,2.69187,1826.3,1826.2,3.732]
[1746486127337,1.09533,1826.2,1826.1,9.20536503]
[1746486127538,2.66763,1826.2,1826.1,20.14596503]
[1746486127839,2.69191,1826.3,1826.2,1.09533]
[1746486128039,2.69191,1826.3,1826.2,17.22791854]
[1746486128235,4.75126389,1826.5,1826.4,1.09521]
[1746486128535,3.65608389,1826.5,1826.4,15.62839854]
[1746486128932,3.65608389,1826.5,1826.4,18.02709854]
[1746486129138,3.65608389,1826.5,1826.4,21.75909854]
[1746486129438,4.75123389,1826.5,1826.4,21.75909854]
[1746486130838,1.09515,1826.5,1826.4,21.75909854]
[1746486132843,1.09514,1826.6,1826.5,1.09509]
[1746486133044,1.09503,1826.7,1826.6,15.62827854]
[1746486133241,4.75110389,1826.8,1826.7,1.09503]
[1746486133543,4.75110389,1826.8,1826.7,18.10431854]
[1746486134340,6.58199419,1826.8,1826.7,18.10431854]
[1746486136447,8.21499419,1826.8,1826.7,18.10431854]
[1746486137249,8.21499419,1826.8,1826.7,21.83631854]
[1746486137945,2.72802,1826.8,1826.7,21.83631854]
[1746486140448,2.72797,1826.8,1826.7,21.83631854]
[1746486141154,5.58538048,1826.9,1826.8,1.09497]
[1746486141360,5.58538048,1826.9,1826.8,5.27988854]
[1746486141655,5.58538048,1826.9,1826.8,1.6873]
[1746486141844,7.28038048,1826.9,1826.8,1.6873]
[1746486143353,4.75148048,1826.9,1826.8,16.22048854]
[1746486143553,4.75148048,1826.9,1826.8,17.31545854]
[1746486143751,3.65653048,1826.9,1826.8,17.31545854]
[1746486144052,3.65653048,1826.9,1826.8,24.13525854]
[1746486144255,3.65653048,1826.9,1826.8,32.86725854]
[1746486144555,3.65653048,1827.0,1826.9,1.09491]
[1746486144753,3.65653048,1827.0,1826.9,18.14599854]
[1746486144952,3.65653048,1827.0,1826.9,23.14599854]
[1746486145154,3.65653048,1827.0,1826.9,26.87799854]
[1746486145647,7.31596559,1827.3,1827.2,1.09473]
[1746486145853,4.91811559,1827.3,1827.2,16.96074435]
[1746486146046,0.65328559,1827.3,1827.2,21.96074435]
[1746486146352,0.65328559,1827.3,1827.2,25.69274435]
[1746486146753,5.59e-06,1827.3,1827.2,25.69274435]
[1746486149255,5.59e-06,1827.3,1827.2,27.32984435]
[1746486149454,1.09442,1827.8,1827.7,1.09443]
[1746486149756,1.09442,1827.8,1827.7,10.14064435]
[1746486150054,1.6078,1827.9,1827.7,10.14064435]
[1746486150355,1.09431,1827.9,1827.8,11.77766435]
[1746486150551,1.09431,1827.9,1827.8,6.32403854]
[1746486150952,1.09431,1827.9,1827.8,5.22968854]
[1746486151143,1.09431,1827.9,1827.8,6.32405854]
[1746486151356,2.8135,1828.0,1827.8,6.32405854]
[1746486151556,2.8135,1828.0,1827.9,5.24878854]
[1746486151956,2.8135,1828.0,1827.9,1.6562]
[1746486152354,2.8135,1828.0,1827.9,2.75051]
[1746486152556,1.7192,1828.0,1827.9,6.34309854]
[1746486152754,2.81345,1828.0,1827.9,6.34309854]
[1746486152953,0.8547,1828.1,1828.0,1.09425]
[1746486153156,2.4313,1828.1,1828.0,15.52866435]
[1746486153356,2.4313,1828.1,1828.0,10.07503854]
[1746486153859,2.4313,1828.1,1828.0,15.52866435]
[1746486154356,9.14495699,1828.9,1828.8,1.09377]
[1746486154555,9.14495699,1828.9,1828.8,16.95778435]
[1746486158256,12.87695699,1828.9,1828.8,16.95778435]
[1746486158464,3.732,1828.9,1828.8,16.95778435]
[1746486160059,1.09383,1828.7,1828.6,3.2078]
[1746486160363,1.09383,1828.7,1828.6,4.68647854]
[1746486160663,3.63253,1828.7,1828.6,4.68647854]
[1746486161164,7.36453,1828.7,1828.6,4.68647854]
[1746486163762,7.36453,1828.7,1828.6,7.89427854]
[1746486164765,7.36453,1828.7,1828.6,13.34790435]
[1746486165065,17.21323,1828.7,1828.3,1.19404]
[1746486165267,1.09401,1828.4,1828.3,1.19404]
[1746486166165,4.82601,1828.4,1828.3,1.19404]
[1746486166365,5.64521,1828.4,1828.3,1.19404]
[1746486169566,5.64521,1828.4,1828.3,13.44805435]
[1746486169567,3.732,1828.4,1828.3,13.44805435]
[1746486170263,1.6067,1828.5,1828.4,1.09401]
[1746486170561,1.6067,1828.5,1828.4,10.14022435]
[1746486171162,5.3387,1828.5,1828.4,10.14022435]
[1746486171560,5.3387,1828.5,1828.4,13.74422435]
[1746486171765,5.3387,1828.5,1828.4,15.42782435]
[1746486172172,1.6067,1828.5,1828.4,15.42782435]
[1746486173171,5.3387,1828.5,1828.4,15.42782435]
[1746486174162,5.3387,1828.5,1828.4,13.74422435]
[1746486174872,6.43265,1828.5,1828.4,13.74422435]
[1746486175068,5.3387,1828.5,1828.4,13.74422435]
[1746486176174,6.43265,1828.5,1828.4,4.69801]
[1746486177572,6.43265,1828.5,1828.4,8.29059854]
[1746486178573,6.43866596,1828.5,1828.4,8.29059854]
[1746486178773,6.43866596,1828.5,1828.4,4.69801]
[1746486179371,6.43866596,1828.5,1828.4,3.604]
[1746486179563,6.43866596,1828.5,1828.4,4.69801]
[1746486181573,5.34471596,1828.5,1828.4,4.69801]
[1746486191781,5.34471596,1828.5,1828.4,6.28171]
[1746486193588,5.34471596,1828.5,1828.4,15.32792435]
[1746486195482,5.34471596,1828.5,1828.4,10.14022435]
[1746486195787,1.09401,1828.4,1828.3,0.1]
[1746486195987,1.09413,1828.2,1828.1,4.30194]
[1746486196588,2.78503,1828.2,1828.1,1.09414]
[1746486196792,7.78503,1828.2,1828.1,1.09414]
[1746486197085,2.78503,1828.2,1828.1,1.09414]
[1746486197286,5.4229,1828.2,1828.1,1.09414]
[1746486199495,6.2259,1828.2,1828.1,1.09414]
[1746486200089,7.32003,1828.2,1828.1,1.09414]
[1746486204599,1.09423,1828.1,1828.0,1.09419]
[1746486204899,2.71613,1828.1,1828.0,6.54781581]
[1746486205106,6.44813,1828.1,1828.0,1.09419]
[1746486206396,6.44809,1828.1,1828.0,1.09419]
[1746486207796,6.44809,1828.1,1828.0,6.54781581]
[1746486208395,1.09431,1827.9,1827.8,4.30212]
[1746486208586,1.09436,1827.9,1827.8,1.09434]
[1746486208789,1.09436,1827.9,1827.7,1.09443]
[1746486208790,1.09433,1827.9,1827.7,1.09443]
[1746486208988,5.1226,1828.0,1827.9,1.09431]
[1746486209193,8.8546,1828.0,1827.9,1.09431]
[1746486209395,8.85455,1828.0,1827.9,1.09431]
[1746486209596,7.7603,1828.0,1827.9,1.09431]
[1746486210401,8.85455,1828.0,1827.9,1.09431]